[Event "ESP-chT Div I 2018"]
[Site "Linares"]
[Date "2018.08.06"]
[Round "1"]
[White "Martin Capitan, Feliciano"]
[Black "Vega Gutierrez, Belinda Vidina"]
[Result "1/2-1/2"]
[ECO "C44"]
[WhiteElo "2066"]
[BlackElo "2165"]
[Annotator "NA"]
[PlyCount "61"]
[EventDate "2018.08.06"]
[EventType "team-tourn"]
[EventCountry "ESP"]
[SourceTitle "playchess.com"]
[Source "ChessBase"]
[SourceQuality "1"]
[TimeControl "40/5400+30:1800+30"]

1. e4 {[%emt 0:00:00]} e5 {[%emt 0:00:00]} 2. Nf3 {[%emt 0:00:04]} Nc6 {[%emt 0:00:00]} 3. c3 {[%emt 0:00:21]} d6 {[%emt 0:07:08]} 4. d4 {[%emt 0:05:08]} Bg4 {[%emt 0:06:30]} 5. Bb5 {[%emt 0:08:36]} exd4 {[%emt 0:21:17]} 6. cxd4 {[%emt 0:08:20]} d5 {[%emt 0:00:46]} 7. Qa4 {[%emt 0:05:16]} Bd7 {[%emt 0:11:31]} 8. exd5 {[%emt 0:07:54]} Nb4 {[%emt 0:00:14]} 9. O-O {[%emt 0:03:16]} Bd6 {[%emt 0:09:18]} 10. Ne5 {[%emt 0:16:04]} Bxe5 {[%emt 0:07:14]} 11. Re1 {[%emt 0:09:10]} Nd3 {[%emt 0:04:05]} 12. Re3 {[%emt 0:07:24]} Ne7 {[%emt 0:15:55]} 13. Bxd7+ {[%emt 0:06:18]} Qxd7 {[%emt 0:00:09]} 14. Qxd7+ {[%emt 0:01:05]} Kxd7 {[%emt 0:00:03]} 15. Rxd3 {[%emt 0:01:38]} Bf6 {[%emt 0:00:55]} 16. Nc3 {[%emt 0:00:23]} h5 {[%emt 0:07:23]} 17. Be3 {[%emt 0:06:49]} h4 {[%emt 0:00:16]} 18. Rc1 {[%emt 0:00:34]} b6 {[%emt 0:01:54]} 19. h3 {[%emt 0:01:52]} Rh5 {[%emt 0:00:31]} 20. Bf4 {[%emt 0:07:30]} Rc8 {[%emt 0:00:02]} 21. Ne4 {[%emt 0:00:42]} Nxd5 {[%emt 0:00:21]} 22. Nxf6+ {[%emt 0:00:14]} Nxf6 {[%emt 0:00:08]} 23. Be5 {[%emt 0:00:14]} Ne8 {[%emt 0:00:48]} 24. Ra3 {[%emt 0:00:21]} a5 {[%emt 0:00:23]} 25. Rac3 {[%emt 0:00:23]} f6 {[%emt 0:00:14]} 26. Bh2 {[%emt 0:00:42]} Rd5 {[%emt 0:00:29]} 27. Rc4 {[%emt 0:00:19]} Nd6 {[%emt 0:00:51]} 28. Bxd6 {[%emt 0:00:24]} Kxd6 {[%emt 0:00:56]} 29. a4 {[%emt 0:01:02]} Kd7 {[%emt 0:04:00]} 30. Kf1 {[%emt 0:00:15]} Rg5 {[%emt 0:00:44]} 31. f3 {[%emt 0:00:35]} 1/2-1/2

[Event "ESP-chT Div I 2018"]
[Site "Linares"]
[Date "2018.08.06"]
[Round "1"]
[White "Cao Armillas, Jesus"]
[Black "Garcia Molina, Jose"]
[Result "1/2-1/2"]
[ECO "A58"]
[WhiteElo "2043"]
[BlackElo "1969"]
[Annotator "NA"]
[PlyCount "132"]
[EventDate "2018.08.06"]
[EventType "team-tourn"]
[EventCountry "ESP"]
[SourceTitle "playchess.com"]
[Source "ChessBase"]
[SourceQuality "1"]
[TimeControl "40/5400+30:1800+30"]

1. d4 {[%emt 0:00:13]} Nf6 {[%emt 0:02:24]} 2. c4 {[%emt 0:00:21]} c5 {[%emt 0:01:08]} 3. d5 {[%emt 0:00:07]} b5 {[%emt 0:00:07]} 4. cxb5 {[%emt 0:00:06]} a6 {[%emt 0:00:05]} 5. Nc3 {[%emt 0:00:42]} d6 {[%emt 0:09:33]} 6. bxa6 {[%emt 0:01:11]} Bxa6 {[%emt 0:00:13]} 7. Nf3 {[%emt 0:00:27]} g6 {[%emt 0:00:22]} 8. g3 {[%emt 0:00:12]} Bg7 {[%emt 0:00:06]} 9. Bg2 {[%emt 0:00:06]} Nbd7 {[%emt 0:01:24]} 10. Rb1 {[%emt 0:00:32]} O-O {[%emt 0:02:39]} 11. O-O {[%emt 0:00:19]} Qa5 {[%emt 0:04:59]} 12. Bd2 {[%emt 0:01:16]} Rfb8 {[%emt 0:04:33]} 13. b3 {[%emt 0:10:52]} Ng4 {[%emt 0:13:58]} 14. Qc2 {[%emt 0:04:53]} Nge5 {[%emt 0:12:06]} 15. Ne1 {[%emt 0:02:04]} Rb7 {[%emt 0:25:19]} 16. h3 {[%emt 0:00:33]} Nf6 {[%emt 0:00:42]} 17. Kh2 {[%emt 0:07:47]} Ne8 {[%emt 0:03:40]} 18. f4 {[%emt 0:01:37]} Nd7 {[%emt 0:00:04]} 19. Na4 {[%emt 0:18:52]} Qd8 {[%emt 0:02:42]} 20. Nd3 {[%emt 0:03:12]} Nc7 {[%emt 0:02:22]} 21. Bc3 {[%emt 0:04:27]} Nb5 {[%emt 0:04:35]} 22. Bxg7 {[%emt 0:00:13]} Kxg7 {[%emt 0:00:02]} 23. e3 {[%emt 0:03:07]} Kg8 {[%emt 0:02:27]} 24. Rbc1 {[%emt 0:03:53]} Na3 {[%emt 0:01:46]} 25. Qc3 {[%emt 0:05:58]} c4 {[%emt 0:02:06]} 26. Nb4 {[%emt 0:03:45]} Qa5 {[%emt 0:02:50]} 27. Nxa6 {[%emt 0:00:42]} Rxa6 {[%emt 0:00:17]} 28. Qxa5 {[%emt 0:01:59]} Rxa5 {[%emt 0:00:01]} 29. Rc3 {[%emt 0:00:56]} cxb3 {[%emt 0:00:12]} 30. axb3 {[%emt 0:00:43]} Nb5 {[%emt 0:00:13]} 31. Rc8+ {[%emt 0:01:16]} Kg7 {[%emt 0:00:01]} 32. Rfc1 {[%emt 0:01:36]} Nf6 {[%emt 0:01:46]} 33. Nb2 {[%emt 0:06:05]} Na7 {[%emt 0:00:48]} 34. R8c3 {[%emt 0:00:49]} Rab5 {[%emt 0:00:45]} 35. Nd1 {[%emt 0:02:35]} Rb4 {[%emt 0:00:30]} 36. Rd3 {[%emt 0:00:55]} Nd7 {[%emt 0:00:03]} 37. e4 {[%emt 0:03:07]} Nb5 {[%emt 0:00:38]} 38. Rc4 {[%emt 0:01:45]} Na3 {[%emt 0:00:04]} 39. Rc6 {[%emt 0:02:22]} Nb8 {[%emt 0:00:45]} 40. Rcc3 {[%emt 0:01:26]} Nb1 {[%emt 0:00:31]} 41. Rc4 {[%emt 0:30:54]} Na3 {[%emt 0:30:01]} 42. Rc8 {[%emt 0:00:17]} Nd7 {[%emt 0:00:04]} 43. Re3 {[%emt 0:00:12]} Nb5 {[%emt 0:01:02]} 44. e5 {[%emt 0:00:56]} Na7 {[%emt 0:00:33]} 45. Rd8 {[%emt 0:01:30]} Nb5 {[%emt 0:01:30]} 46. e6 {[%emt 0:00:16]} Nc5 {[%emt 0:00:08]} 47. exf7 {[%emt 0:01:01]} Kxf7 {[%emt 0:00:01]} 48. Bf1 {[%emt 0:01:17]} Nd4 {[%emt 0:00:15]} 49. Bc4 {[%emt 0:00:27]} Ncxb3 {[%emt 0:00:20]} 50. Bxb3 {[%emt 0:00:09]} Rxb3 {[%emt 0:00:03]} 51. Rxb3 {[%emt 0:01:34]} Rxb3 {[%emt 0:00:01]} 52. Rh8 {[%emt 0:00:40]} Kg7 {[%emt 0:00:11]} 53. Re8 {[%emt 0:00:07]} Kf7 {[%emt 0:00:40]} 54. Rh8 {[%emt 0:00:05]} h5 {[%emt 0:00:15]} 55. Rh7+ {[%emt 0:00:33]} Kf6 {[%emt 0:00:11]} 56. Nf2 {[%emt 0:00:42]} Re3 {[%emt 0:01:32]} 57. Kg2 {[%emt 0:00:16]} e6 {[%emt 0:02:10]} 58. dxe6 {[%emt 0:01:37]} Kxe6 {[%emt 0:00:06]} 59. g4 {[%emt 0:00:39]} hxg4 {[%emt 0:00:30]} 60. hxg4 {[%emt 0:00:39]} Rf3 {[%emt 0:00:26]} 61. Nh3 {[%emt 0:00:33]} Ra3 {[%emt 0:01:05]} 62. Ng5+ {[%emt 0:00:23]} Kd5 {[%emt 0:00:02]} 63. Rd7 {[%emt 0:01:40]} Ne6 {[%emt 0:00:47]} 64. Nxe6 {[%emt 0:00:39]} Kxe6 {[%emt 0:00:11]} 65. Rg7 {[%emt 0:00:18]} Kf6 {[%emt 0:00:27]} 66. Rd7 {[%emt 0:00:04]} Ke6 1/2-1/2

[Event "ESP-chT Div I 2018"]
[Site "Linares"]
[Date "2018.08.06"]
[Round "1"]
[White "Monllor Garcia, Yolanda"]
[Black "Aranaz Murillo, Amalia"]
[Result "1-0"]
[ECO "B13"]
[WhiteElo "1936"]
[BlackElo "2227"]
[Annotator "NA"]
[PlyCount "77"]
[EventDate "2018.08.06"]
[EventType "team-tourn"]
[EventCountry "ESP"]
[SourceTitle "playchess.com"]
[Source "ChessBase"]
[SourceQuality "1"]
[TimeControl "40/5400+30:1800+30"]

1. e4 {[%emt 0:03:34]} c6 {[%emt 0:00:00]} 2. d4 {[%emt 0:00:17]} d5 {[%emt 0:00:00]} 3. exd5 {[%emt 0:00:15]} cxd5 {[%emt 0:00:00]} 4. Bd3 {[%emt 0:00:29]} Nc6 {[%emt 0:00:09]} 5. c3 {[%emt 0:00:14]} Qc7 {[%emt 0:00:28]} 6. h3 {[%emt 0:00:42]} g6 {[%emt 0:02:05]} 7. Nf3 {[%emt 0:00:21]} Nf6 {[%emt 0:00:42]} 8. Nbd2 {[%emt 0:01:04]} Bf5 {[%emt 0:01:26]} 9. Qe2 {[%emt 0:01:09]} Bxd3 {[%emt 0:04:02]} 10. Qxd3 {[%emt 0:00:16]} Bg7 {[%emt 0:00:05]} 11. O-O {[%emt 0:01:38]} O-O {[%emt 0:00:07]} 12. Re1 {[%emt 0:01:33]} Nd7 {[%emt 0:06:45]} 13. Nf1 {[%emt 0:01:56]} h6 {[%emt 0:06:20]} 14. Rb1 {[%emt 0:03:00]} Rac8 {[%emt 0:06:22]} 15. N1h2 {[%emt 0:05:53]} Nf6 {[%emt 0:09:21]} 16. Ne5 {[%emt 0:06:05]} e6 {[%emt 0:00:17]} 17. Neg4 {[%emt 0:04:26]} Nxg4 {[%emt 0:01:50]} 18. Nxg4 {[%emt 0:00:10]} h5 {[%emt 0:05:25]} 19. Nh2 {[%emt 0:03:16]} Na5 {[%emt 0:05:07]} 20. g4 {[%emt 0:07:24]} Qc4 {[%emt 0:06:44]} 21. Qf3 {[%emt 0:11:00]} Qxa2 {[%emt 0:05:08]} 22. Bf4 {[%emt 0:00:24]} hxg4 {[%emt 0:04:57]} 23. Nxg4 {[%emt 0:04:09]} Nc4 {[%emt 0:00:08]} 24. Nh6+ {[%emt 0:13:02]} Kh7 {[%emt 0:00:08]} 25. Qg3 {[%emt 0:02:36]} Bxh6 {[%emt 0:01:18]} 26. Qh4 {[%emt 0:00:49]} g5 {[%emt 0:06:19]} 27. Bxg5 {[%emt 0:00:23]} Rh8 {[%emt 0:00:22]} 28. Qxh6+ {[%emt 0:01:56]} Kg8 {[%emt 0:00:06]} 29. Qf6 {[%emt 0:00:57]} Nd6 {[%emt 0:00:49]} 30. Kh2 {[%emt 0:09:04]} Ne4 {[%emt 0:01:57]} 31. Rxe4 {[%emt 0:03:57]} Qxb1 {[%emt 0:00:44]} 32. Rg4 {[%emt 0:00:22]} Rxh3+ {[%emt 0:00:23]} 33. Kxh3 {[%emt 0:00:21]} Qh1+ {[%emt 0:00:06]} 34. Kg3 {[%emt 0:00:23]} Qg1+ {[%emt 0:00:10]} 35. Kf3 {[%emt 0:00:20]} Qd1+ {[%emt 0:00:40]} 36. Kf4 {[%emt 0:01:25]} e5+ {[%emt 0:02:05]} 37. Qxe5 {[%emt 0:00:49]} Qc1+ {[%emt 0:00:24]} 38. Qe3 {[%emt 0:00:40]} Qxb2 {[%emt 0:00:29]} 39. Be7+ {[%emt 0:00:21]} 1-0

[Event "ESP-chT Div I 2018"]
[Site "Linares"]
[Date "2018.08.06"]
[Round "1"]
[White "Badillo Ramos, Steve"]
[Black "Gonzalez de la Torre, Santiago"]
[Result "1/2-1/2"]
[ECO "B27"]
[WhiteElo "1901"]
[BlackElo "2434"]
[Annotator "NA"]
[PlyCount "137"]
[EventDate "2018.08.06"]
[EventType "team-tourn"]
[EventCountry "ESP"]
[SourceTitle "playchess.com"]
[Source "ChessBase"]
[SourceQuality "1"]
[TimeControl "40/5400+30:1800+30"]

1. e4 {[%emt 0:00:00]} c5 {[%emt 0:00:00]} 2. Nf3 {[%emt 0:00:00]} b6 {[%emt 0:00:00]} 3. b3 {[%emt 0:04:47]} Bb7 {[%emt 0:00:37]} 4. Qe2 {[%emt 0:00:12]} d6 {[%emt 0:04:24]} 5. Bb2 {[%emt 0:05:04]} Nf6 {[%emt 0:05:23]} 6. d3 {[%emt 0:05:04]} Nc6 {[%emt 0:01:54]} 7. g3 {[%emt 0:02:37]} e5 {[%emt 0:00:36]} 8. c3 {[%emt 0:00:53]} g6 {[%emt 0:00:51]} 9. Bg2 {[%emt 0:02:05]} Bg7 {[%emt 0:00:07]} 10. O-O {[%emt 0:00:38]} O-O {[%emt 0:00:05]} 11. Na3 {[%emt 0:02:46]} d5 {[%emt 0:06:19]} 12. Nd2 {[%emt 0:05:23]} Qd7 {[%emt 0:03:17]} 13. Nc2 {[%emt 0:04:02]} Rad8 {[%emt 0:09:37]} 14. Rad1 {[%emt 0:04:54]} Rfe8 {[%emt 0:00:08]} 15. Rfe1 {[%emt 0:15:55]} d4 {[%emt 0:04:09]} 16. cxd4 {[%emt 0:00:33]} exd4 {[%emt 0:00:44]} 17. f4 {[%emt 0:00:32]} Nd5 {[%emt 0:00:38]} 18. Qf1 {[%emt 0:02:58]} Nc3 {[%emt 0:01:54]} 19. Bxc3 {[%emt 0:01:19]} dxc3 {[%emt 0:00:06]} 20. Nc4 {[%emt 0:00:08]} Nd4 {[%emt 0:03:30]} 21. N4e3 {[%emt 0:04:18]} Nxc2 {[%emt 0:01:06]} 22. Nxc2 {[%emt 0:00:13]} Bd4+ {[%emt 0:00:41]} 23. Kh1 {[%emt 0:01:20]} a5 {[%emt 0:00:36]} 24. e5 {[%emt 0:04:33]} a4 {[%emt 0:01:55]} 25. Bxb7 {[%emt 0:03:02]} Qxb7+ {[%emt 0:01:56]} 26. Qg2 {[%emt 0:00:12]} Qxg2+ {[%emt 0:03:19]} 27. Kxg2 {[%emt 0:00:06]} axb3 {[%emt 0:00:03]} 28. axb3 {[%emt 0:00:08]} Ra8 {[%emt 0:00:06]} 29. Ra1 {[%emt 0:00:23]} f6 {[%emt 0:06:52]} 30. exf6 {[%emt 0:03:56]} Rxa1 {[%emt 0:15:14]} 31. Rxe8+ {[%emt 0:00:30]} Kf7 {[%emt 0:00:06]} 32. Nxa1 {[%emt 0:00:11]} Kxe8 {[%emt 0:00:06]} 33. Kf3 {[%emt 0:01:30]} Kf7 {[%emt 0:00:24]} 34. Ke4 {[%emt 0:00:58]} Kxf6 {[%emt 0:00:28]} 35. g4 {[%emt 0:00:58]} Bg1 {[%emt 0:18:52]} 36. h3 {[%emt 0:00:31]} Ke6 {[%emt 0:00:09]} 37. Nc2 {[%emt 0:00:33]} Kd6 {[%emt 0:01:15]} 38. f5 {[%emt 0:00:57]} Bf2 {[%emt 0:02:04]} 39. Na3 {[%emt 0:01:40]} Ke7 {[%emt 0:00:30]} 40. Nc2 {[%emt 0:06:12]} Kf6 {[%emt 0:00:44]} 41. Kf3 {[%emt 0:32:05]} Bd4 {[%emt 0:33:21]} 42. fxg6 {[%emt 0:01:59]} Kxg6 {[%emt 0:00:07]} 43. h4 {[%emt 0:01:09]} Be5 {[%emt 0:00:06]} 44. Na3 {[%emt 0:01:47]} Bd6 {[%emt 0:00:19]} 45. Nc2 {[%emt 0:00:06]} Be7 {[%emt 0:01:14]} 46. Kg3 {[%emt 0:00:39]} b5 {[%emt 0:03:06]} 47. Na1 {[%emt 0:00:28]} Kf7 {[%emt 0:00:05]} 48. g5 {[%emt 0:05:22]} Ke6 {[%emt 0:00:06]} 49. Kf4 {[%emt 0:00:21]} Kd5 {[%emt 0:00:07]} 50. Nc2 {[%emt 0:00:37]} Bd6+ {[%emt 0:00:06]} 51. Ke3 {[%emt 0:01:26]} Ke5 {[%emt 0:00:54]} 52. h5 {[%emt 0:01:15]} Bf8 {[%emt 0:00:06]} 53. g6 {[%emt 0:01:49]} h6 {[%emt 0:00:47]} 54. d4+ {[%emt 0:00:41]} Kf5 {[%emt 0:01:45]} 55. dxc5 {[%emt 0:01:03]} Bxc5+ {[%emt 0:00:13]} 56. Kd3 {[%emt 0:00:06]} Bf8 {[%emt 0:00:26]} 57. Nd4+ {[%emt 0:00:10]} Kf6 {[%emt 0:00:52]} 58. Nxb5 {[%emt 0:01:14]} Kg5 {[%emt 0:00:37]} 59. Nd4 {[%emt 0:00:37]} Kxh5 {[%emt 0:00:42]} 60. Ne6 {[%emt 0:00:17]} Kxg6 {[%emt 0:00:05]} 61. Nxf8+ {[%emt 0:00:05]} Kf5 {[%emt 0:01:34]} 62. Kxc3 {[%emt 0:00:55]} h5 {[%emt 0:00:06]} 63. Kd2 {[%emt 0:00:06]} h4 {[%emt 0:00:14]} 64. Ke3 {[%emt 0:00:19]} h3 {[%emt 0:00:08]} 65. Kf3 {[%emt 0:00:04]} Ke5 {[%emt 0:00:10]} 66. Ng6+ {[%emt 0:05:38]} Kd4 {[%emt 0:00:20]} 67. Nf4 {[%emt 0:00:35]} Kc3 {[%emt 0:00:15]} 68. Nxh3 {[%emt 0:00:02]} Kxb3 69. Ke4 1/2-1/2

[Event "ESP-chT Div I 2018"]
[Site "Linares"]
[Date "2018.08.06"]
[Round "1"]
[White "Bermudez Revuelta, Paula"]
[Black "Munoz Avila, Jose Luis"]
[Result "1/2-1/2"]
[ECO "C41"]
[WhiteElo "1887"]
[BlackElo "2204"]
[Annotator "NA"]
[PlyCount "78"]
[EventDate "2018.08.06"]
[EventType "team-tourn"]
[EventCountry "ESP"]
[SourceTitle "playchess.com"]
[Source "ChessBase"]
[SourceQuality "1"]
[TimeControl "40/5400+30:1800+30"]

1. e4 {[%emt 0:00:00]} d6 {[%emt 0:00:00]} 2. d4 {[%emt 0:00:00]} Nf6 {[%emt 0:00:00]} 3. Nc3 {[%emt 0:00:00]} e5 {[%emt 0:00:00]} 4. Nf3 {[%emt 0:00:00]} Nbd7 {[%emt 0:00:29]} 5. Bc4 {[%emt 0:00:00]} Be7 {[%emt 0:00:05]} 6. O-O {[%emt 0:00:07]} O-O {[%emt 0:00:04]} 7. a4 {[%emt 0:00:06]} a5 {[%emt 0:01:21]} 8. Re1 {[%emt 0:00:11]} c6 {[%emt 0:00:07]} 9. Ba2 {[%emt 0:00:07]} exd4 {[%emt 0:00:21]} 10. Nxd4 {[%emt 0:00:07]} Nc5 {[%emt 0:00:10]} 11. Bf4 {[%emt 0:00:48]} Be6 {[%emt 0:02:33]} 12. Nxe6 {[%emt 0:00:16]} fxe6 {[%emt 0:01:07]} 13. e5 {[%emt 0:01:39]} Nd5 {[%emt 0:00:12]} 14. Nxd5 {[%emt 0:02:41]} exd5 {[%emt 0:01:20]} 15. exd6 {[%emt 0:02:59]} Bxd6 {[%emt 0:28:10]} 16. Bxd5+ {[%emt 0:08:47]} Kh8 {[%emt 0:00:18]} 17. Bxd6 {[%emt 0:00:53]} Qxd6 {[%emt 0:00:12]} 18. Bf3 {[%emt 0:02:30]} Qf6 {[%emt 0:10:29]} 19. Qc1 {[%emt 0:09:37]} Rfe8 {[%emt 0:10:17]} 20. b3 {[%emt 0:09:45]} Qc3 {[%emt 0:08:58]} 21. Rd1 {[%emt 0:08:38]} Rad8 {[%emt 0:05:41]} 22. Rxd8 {[%emt 0:05:57]} Rxd8 {[%emt 0:00:16]} 23. Qe1 {[%emt 0:02:18]} Qxc2 {[%emt 0:05:42]} 24. Rc1 {[%emt 0:21:15]} Nd3 {[%emt 0:01:33]} 25. Rxc2 {[%emt 0:00:39]} Nxe1 {[%emt 0:00:06]} 26. Re2 {[%emt 0:00:18]} Nd3 {[%emt 0:00:23]} 27. Rd2 {[%emt 0:02:16]} Re8 {[%emt 0:00:15]} 28. Re2 {[%emt 0:00:39]} Rxe2 {[%emt 0:02:44]} 29. Bxe2 {[%emt 0:00:01]} Nc5 {[%emt 0:00:52]} 30. Bd1 {[%emt 0:04:19]} g5 {[%emt 0:03:42]} 31. Kf1 {[%emt 0:01:08]} Kg7 {[%emt 0:00:33]} 32. Ke2 {[%emt 0:00:24]} Kf6 {[%emt 0:02:49]} 33. Ke3 {[%emt 0:00:53]} Ke5 {[%emt 0:00:37]} 34. g3 {[%emt 0:01:14]} b5 {[%emt 0:03:25]} 35. f4+ {[%emt 0:01:41]} gxf4+ {[%emt 0:00:08]} 36. gxf4+ {[%emt 0:00:12]} Kd5 {[%emt 0:00:43]} 37. Bf3+ {[%emt 0:00:53]} Kd6 {[%emt 0:00:04]} 38. Bd1 {[%emt 0:00:50]} Kd5 {[%emt 0:03:37]} 39. Bf3+ {[%emt 0:00:13]} Kd6 {[%emt 0:06:27] Ke4 Ke5+} 1/2-1/2

[Event "ESP-chT Div I 2018"]
[Site "Linares"]
[Date "2018.08.07"]
[Round "2"]
[White "Gascon del Nogal, Jose Rafael"]
[Black "Bergez, Luc"]
[Result "0-1"]
[ECO "B01"]
[WhiteElo "2476"]
[BlackElo "2327"]
[Annotator "ChessBase"]
[PlyCount "115"]
[EventDate "2018.08.06"]
[EventType "team-tourn"]
[EventCountry "ESP"]
[SourceTitle "playchess.com"]
[Source "ChessBase"]
[SourceQuality "1"]
[TimeControl "40/5400+30:1800+30"]

1. e4 {[%emt 0:00:00]} d5 {[%emt 0:00:00]} 2. exd5 {[%emt 0:00:00]} Nf6 {[%emt 0:00:00]} 3. Nf3 {[%emt 0:00:00]} Nxd5 {[%emt 0:00:26]} 4. d4 {[%emt 0:00:15]} Bf5 {[%emt 0:00:39]} 5. Be2 {[%emt 0:00:25]} e6 {[%emt 0:00:22]} 6. O-O {[%emt 0:00:22]} Be7 {[%emt 0:00:11]} 7. c4 {[%emt 0:00:17]} Nb4 {[%emt 0:04:06]} 8. Na3 {[%emt 0:03:26]} c5 {[%emt 0:08:33]} 9. Be3 {[%emt 0:00:59]} cxd4 {[%emt 0:10:03]} 10. Nxd4 {[%emt 0:00:14]} Bg6 {[%emt 0:00:36]} 11. Bf3 {[%emt 0:04:18]} N8c6 {[%emt 0:01:28]} 12. Nxc6 {[%emt 0:00:40]} Nxc6 {[%emt 0:13:13]} 13. Qxd8+ {[%emt 0:02:36]} Rxd8 {[%emt 0:05:20]} 14. Nb5 {[%emt 0:00:43]} a6 {[%emt 0:07:31]} 15. Nc7+ {[%emt 0:02:26]} Kd7 {[%emt 0:03:31]} 16. Bb6 {[%emt 0:01:31]} Kc8 {[%emt 0:07:54]} 17. Bxc6 {[%emt 0:14:23]} Rd6 {[%emt 0:05:05]} 18. Bc5 {[%emt 0:32:13]} Rxc6 {[%emt 0:00:17]} 19. Bxe7 {[%emt 0:00:03]} Rxc7 {[%emt 0:00:52]} 20. Bb4 {[%emt 0:01:34]} Bd3 {[%emt 0:04:02]} 21. Rfd1 {[%emt 0:03:02]} Bxc4 {[%emt 0:00:17]} 22. Bc3 {[%emt 0:01:32]} f6 {[%emt 0:00:16]} 23. f3 {[%emt 0:02:46]} Bd5 {[%emt 0:01:55]} 24. Rd2 {[%emt 0:00:37]} Rc4 {[%emt 0:03:36]} 25. Kf2 {[%emt 0:01:00]} Kd7 {[%emt 0:00:49]} 26. a3 {[%emt 0:00:49]} Ke7 {[%emt 0:01:01]} 27. Rc1 {[%emt 0:00:47]} Kf7 {[%emt 0:01:25]} 28. Rd4 {[%emt 0:00:05]} Rxd4 {[%emt 0:01:24]} 29. Bxd4 {[%emt 0:00:05]} Bc6 {[%emt 0:00:09]} 30. Bb6 {[%emt 0:00:05]} Rc8 {[%emt 0:03:00]} 31. b4 {[%emt 0:03:08]} g5 {[%emt 0:00:25]} 32. a4 {[%emt 0:00:50]} Re8 {[%emt 0:00:07]} 33. a5 {[%emt 0:00:29]} Kg6 {[%emt 0:01:58]} 34. Rd1 {[%emt 0:00:27]} Bd5 {[%emt 0:00:17]} 35. Rc1 {[%emt 0:00:49]} h5 {[%emt 0:01:29]} 36. h3 {[%emt 0:02:16]} Bc6 {[%emt 0:00:12]} 37. Rd1 {[%emt 0:00:05]} Bd5 {[%emt 0:00:04]} 38. Rc1 {[%emt 0:00:04]} Kf5 {[%emt 0:02:24]} 39. Rc7 {[%emt 0:03:57]} h4 {[%emt 0:01:00]} 40. Ke3 {[%emt 0:00:46]} e5 {[%emt 0:01:32]} 41. Rd7 {[%emt 0:30:07]} Ke6 {[%emt 0:31:15]} 42. Rd8 {[%emt 0:00:05]} Re7 {[%emt 0:00:25]} 43. Bc5 {[%emt 0:00:18]} Rd7 {[%emt 0:00:43]} 44. Rxd7 {[%emt 0:00:13]} Kxd7 {[%emt 0:00:09]} 45. Bf8 {[%emt 0:00:25]} Ke6 {[%emt 0:00:15]} 46. Bc5 {[%emt 0:01:24]} f5 {[%emt 0:01:04]} 47. Bf8 {[%emt 0:00:06]} g4 {[%emt 0:00:36]} 48. hxg4 {[%emt 0:08:19]} fxg4 {[%emt 0:00:07]} 49. Kf2 {[%emt 0:01:16]} g3+ {[%emt 0:06:05]} 50. Ke3 {[%emt 0:00:05]} Bc4 {[%emt 0:00:35]} 51. Bh6 {[%emt 0:00:10]} Kf5 {[%emt 0:00:38]} 52. Bf8 {[%emt 0:00:24]} Ke6 {[%emt 0:00:06]} 53. Bh6 {[%emt 0:04:58]} Kf5 {[%emt 0:00:02]} 54. Bf8 {[%emt 0:00:04]} Kf6 {[%emt 0:00:09]} 55. f4 {[%emt 0:00:20]} Bd5 {[%emt 0:01:17]} 56. fxe5+ {[%emt 0:00:11]} Kf5 {[%emt 0:00:25]} 57. e6 {[%emt 0:04:14]} Bxg2 {[%emt 0:00:15]} 58. Kd4 {Ke5+} 0-1

[Event "ESP-chT Div I 2018"]
[Site "Linares"]
[Date "2018.08.07"]
[Round "2"]
[White "Cramling, Pia"]
[Black "Franco Alonso, Alejandro"]
[Result "1-0"]
[ECO "A13"]
[WhiteElo "2453"]
[BlackElo "2410"]
[Annotator "ChessBase"]
[PlyCount "81"]
[EventDate "2018.08.06"]
[EventType "team-tourn"]
[EventCountry "ESP"]
[SourceTitle "playchess.com"]
[Source "ChessBase"]
[SourceQuality "1"]
[TimeControl "40/5400+30:1800+30"]

1. Nf3 {[%emt 0:00:00]} Nf6 {[%emt 0:00:00]} 2. c4 {[%emt 0:00:00]} e6 {[%emt 0:00:00]} 3. g3 {[%emt 0:00:00]} d5 {[%emt 0:00:07]} 4. Bg2 {[%emt 0:00:02]} dxc4 {[%emt 0:00:17]} 5. Qa4+ {[%emt 0:00:17]} c6 {[%emt 0:00:18]} 6. Qxc4 {[%emt 0:00:11]} b5 {[%emt 0:00:09]} 7. Qc2 {[%emt 0:02:04]} Bb7 {[%emt 0:00:10]} 8. d4 {[%emt 0:11:36]} Nbd7 {[%emt 0:01:31]} 9. Ne5 {[%emt 0:02:45]} Nxe5 {[%emt 0:06:08]} 10. dxe5 {[%emt 0:00:05]} Nd7 {[%emt 0:00:13]} 11. O-O {[%emt 0:01:08]} Qb6 {[%emt 0:13:14]} 12. Bf4 {[%emt 0:08:17]} Be7 {[%emt 0:04:11]} 13. Nc3 {[%emt 0:09:49]} O-O {[%emt 0:02:59]} 14. Rfd1 {[%emt 0:02:15]} Rfd8 {[%emt 0:00:55]} 15. Ne4 {[%emt 0:03:26]} c5 {[%emt 0:03:34]} 16. Bg5 {[%emt 0:03:26]} Bxg5 {[%emt 0:17:44]} 17. Nxg5 {[%emt 0:02:02]} Nf8 {[%emt 0:00:18]} 18. Bxb7 {[%emt 0:07:55]} Qxb7 {[%emt 0:00:08]} 19. Qxc5 {[%emt 0:00:58]} h6 {[%emt 0:09:06]} 20. Nf3 {[%emt 0:00:30]} Rdc8 {[%emt 0:00:18]} 21. Qe3 {[%emt 0:01:11]} Rc4 {[%emt 0:05:47]} 22. Rd4 {[%emt 0:05:17]} Rc2 {[%emt 0:01:26]} 23. Rd2 {[%emt 0:06:16]} Rac8 {[%emt 0:03:53]} 24. Rad1 {[%emt 0:00:36]} Rxd2 {[%emt 0:02:51]} 25. Rxd2 {[%emt 0:02:04]} Rc1+ {[%emt 0:00:58]} 26. Kg2 {[%emt 0:00:07]} Rc8 {[%emt 0:05:01]} 27. Rd6 {[%emt 0:10:59]} Nd7 {[%emt 0:06:22]} 28. Qd4 {[%emt 0:03:49]} Rc7 {[%emt 0:00:46]} 29. h4 {[%emt 0:01:00]} Nf8 {[%emt 0:01:19]} 30. Qd3 {[%emt 0:02:59]} a6 {[%emt 0:02:57]} 31. Kh2 {[%emt 0:00:45]} Rc1 {[%emt 0:01:57]} 32. Qd2 {[%emt 0:03:17]} Rc8 {[%emt 0:01:35]} 33. Qd3 {[%emt 0:04:48]} Rc1 {[%emt 0:00:27]} 34. h5 {[%emt 0:00:50]} Rc8 {[%emt 0:02:25]} 35. Ne1 {[%emt 0:01:10]} Rc1 {[%emt 0:00:39]} 36. Qd2 {[%emt 0:00:31]} Ra1 {[%emt 0:05:00]} 37. a3 {[%emt 0:00:47]} Qe4 {[%emt 0:00:36]} 38. Rd8 {[%emt 0:01:03]} Qxe5 {[%emt 0:02:47]} 39. Rxf8+ {[%emt 0:00:12]} Kh7 {[%emt 0:00:04]} 40. Qd3+ {[%emt 0:01:40]} f5 {[%emt 0:00:08]} 41. Qd8 {[%emt 0:30:29]} 1-0